[Event "EYCC Open-U12 2019"]
[Site "Bratislava"]
[Date "2019.08.09"]
[Round "8.17"]
[White "Lystsov, Leonid"]
[Black "Magold, Filip"]
[Result "0-1"]
[ECO "A07"]
[WhiteElo "2086"]
[BlackElo "1865"]
[Annotator "NA"]
[PlyCount "158"]
[EventDate "2019.08.02"]
[EventType "swiss"]
[EventCountry "SVK"]
[SourceTitle "playchess.com"]
[Source "ChessBase"]
[SourceQuality "1"]
[TimeControl "40/5400+30:1800+30"]

1. Nf3 {[%emt 0:00:00]} d5 {[%emt 0:00:00]} 2. g3 {[%emt 0:00:00]} Nf6 {[%emt 0:00:00]} 3. Bg2 {[%emt 0:00:00]} c6 {[%emt 0:00:00]} 4. O-O {[%emt 0:00:00]} Bg4 {[%emt 0:00:14]} 5. c4 {[%emt 0:00:07]} e6 {[%emt 0:00:06]} 6. d3 {[%emt 0:00:07]} Nbd7 {[%emt 0:00:43]} 7. cxd5 {[%emt 0:00:09]} cxd5 {[%emt 0:01:02]} 8. Nc3 {[%emt 0:20:10]} Be7 {[%emt 0:04:57]} 9. e4 {[%emt 0:08:56]} Bxf3 {[%emt 0:07:23]} 10. Bxf3 {[%emt 0:05:09]} dxe4 {[%emt 0:00:59]} 11. dxe4 {[%emt 0:00:48]} O-O {[%emt 0:03:41]} 12. Qe2 {[%emt 0:09:25]} Ne5 {[%emt 0:07:29]} 13. Rd1 {[%emt 0:10:03]} Qb6 {[%emt 0:03:26]} 14. b3 {[%emt 0:14:33]} Rac8 {[%emt 0:21:57]} 15. Bb2 {[%emt 0:03:32]} Qa6 {[%emt 0:13:23]} 16. Kg2 {[%emt 0:13:38]} Qxe2 {[%emt 0:06:10]} 17. Bxe2 {[%emt 0:00:30]} Rfd8 {[%emt 0:01:43]} 18. f3 {[%emt 0:07:48]} Nc6 {[%emt 0:01:48]} 19. Rxd8+ {[%emt 0:02:06]} Rxd8 {[%emt 0:00:01]} 20. Rd1 {[%emt 0:00:47]} Rxd1 {[%emt 0:06:17]} 21. Nxd1 {[%emt 0:00:42]} Kf8 {[%emt 0:00:52]} 22. Bb5 {[%emt 0:01:22]} Ke8 {[%emt 0:04:06]} 23. Bxc6+ {[%emt 0:00:22]} bxc6 {[%emt 0:00:01]} 24. Kf2 {[%emt 0:00:49]} g6 {[%emt 0:00:40]} 25. Bxf6 {[%emt 0:00:47]} Bxf6 {[%emt 0:00:01]} 26. Ke3 {[%emt 0:00:33]} Kd7 {[%emt 0:00:18]} 27. Kd3 {[%emt 0:00:07]} h5 {[%emt 0:00:34]} 28. h3 {[%emt 0:00:55]} Kd6 {[%emt 0:01:14]} 29. Ne3 {[%emt 0:00:30]} h4 {[%emt 0:11:35]} 30. g4 {[%emt 0:00:16]} Ke5 {[%emt 0:00:58]} 31. Ng2 {[%emt 0:00:44]} g5 {[%emt 0:00:10]} 32. Ke3 {[%emt 0:00:30]} Be7 {[%emt 0:00:13]} 33. Kd3 {[%emt 0:00:26]} a5 {[%emt 0:03:09]} 34. Kc4 {[%emt 0:00:28]} Bf8 {[%emt 0:00:48]} 35. Kc3 {[%emt 0:00:32]} Be7 {[%emt 0:00:14]} 36. Kd3 {[%emt 0:00:04]} Bf6 {[%emt 0:00:11]} 37. a3 {[%emt 0:00:46]} Be7 {[%emt 0:00:05]} 38. a4 {[%emt 0:00:08]} f5 {[%emt 0:01:36]} 39. exf5 {[%emt 0:00:58]} exf5 {[%emt 0:00:02]} 40. Ne3 {[%emt 0:00:00]} fxg4 {[%emt 0:00:00]} 41. fxg4 {[%emt 0:03:06]} Kf4 {[%emt 0:14:18]} 42. Nf5 {[%emt 0:07:51]} Bb4 {[%emt 0:01:27]} 43. Ke2 {[%emt 0:20:33]} Bc5 {[%emt 0:02:54]} 44. Kf1 {[%emt 0:01:05]} Kf3 {[%emt 0:00:38]} 45. Nh6 {[%emt 0:00:34]} Kg3 {[%emt 0:01:05]} 46. Nf7 {[%emt 0:00:16]} Kxh3 {[%emt 0:02:57]} 47. Nxg5+ {[%emt 0:00:15]} Kxg4 {[%emt 0:00:03]} 48. Ne6 {[%emt 0:01:00]} Bb4 {[%emt 0:00:35]} 49. Kg2 {[%emt 0:00:26]} h3+ {[%emt 0:00:05]} 50. Kh2 {[%emt 0:00:13]} c5 {[%emt 0:00:02]} 51. Nd8 {[%emt 0:00:46]} Kf3 {[%emt 0:00:19]} 52. Kxh3 {[%emt 0:00:21]} Ke3 {[%emt 0:00:03]} 53. Kg4 {[%emt 0:00:44]} Kd3 {[%emt 0:00:06]} 54. Kf3 {[%emt 0:00:05]} Kc3 {[%emt 0:00:02]} 55. Ke4 {[%emt 0:00:52]} Kxb3 {[%emt 0:00:03]} 56. Nc6 {[%emt 0:00:24]} Kxa4 {[%emt 0:00:48]} 57. Kd5 {[%emt 0:00:33]} Kb5 {[%emt 0:00:03]} 58. Na7+ {[%emt 0:00:23]} Ka6 {[%emt 0:01:01]} 59. Nc6 {[%emt 0:00:29]} a4 {[%emt 0:00:11]} 60. Kc4 {[%emt 0:00:37]} a3 {[%emt 0:00:03]} 61. Kb3 {[%emt 0:00:21]} Kb5 {[%emt 0:01:07]} 62. Ne5 {[%emt 0:00:16]} Kb6 {[%emt 0:01:04]} 63. Nc4+ {[%emt 0:00:57]} Kc6 {[%emt 0:00:06]} 64. Ne3 {[%emt 0:00:32]} Kd6 {[%emt 0:00:05]} 65. Nc2 {[%emt 0:00:33]} Kd5 {[%emt 0:00:09]} 66. Ne3+ {[%emt 0:00:22]} Kd4 {[%emt 0:00:05]} 67. Nf5+ {[%emt 0:00:18]} Kd3 {[%emt 0:00:06]} 68. Nd6 {[%emt 0:00:33]} Kd2 {[%emt 0:00:05]} 69. Nc4+ {[%emt 0:00:45]} Kc1 {[%emt 0:00:13]} 70. Ka2 {[%emt 0:00:28]} Kc2 {[%emt 0:00:07]} 71. Ne3+ {[%emt 0:00:21]} Kd3 {[%emt 0:01:35]} 72. Nd5 {[%emt 0:00:21]} Kd4 {[%emt 0:00:13]} 73. Nf4 {[%emt 0:00:50]} c4 {[%emt 0:00:12]} 74. Ne2+ {[%emt 0:00:31]} Ke3 {[%emt 0:00:17]} 75. Nc1 {[%emt 0:00:30]} Kd2 {[%emt 0:00:39]} 76. Kb1 {[%emt 0:00:23]} Kd1 {[%emt 0:00:43]} 77. Na2 {[%emt 0:00:32]} Ba5 {[%emt 0:00:24]} 78. Nc1 {[%emt 0:00:27]} c3 {[%emt 0:00:49]} 79. Nb3 {[%emt 0:00:33]} c2+ {[%emt 0:00:03]} 0-1

[Event "EYCC Open-U12 2019"]
[Site "Bratislava"]
[Date "2019.08.09"]
[Round "8.18"]
[White "Stork, Christopher"]
[Black "Nastore, Pavel-Alexandru"]
[Result "1/2-1/2"]
[ECO "B90"]
[WhiteElo "1905"]
[BlackElo "2084"]
[Annotator "NA"]
[PlyCount "126"]
[EventDate "2019.08.02"]
[EventType "swiss"]
[EventCountry "SVK"]
[SourceTitle "playchess.com"]
[Source "ChessBase"]
[SourceQuality "1"]
[TimeControl "40/5400+30:1800+30"]

1. e4 {[%emt 0:00:00]} c5 {[%emt 0:00:00]} 2. Nf3 {[%emt 0:00:00]} d6 {[%emt 0:00:00]} 3. d4 {[%emt 0:00:00]} cxd4 4. Nxd4 {[%emt 0:00:00]} Nf6 {[%emt 0:00:00]} 5. Nc3 {[%emt 0:00:07]} a6 {[%emt 0:00:00]} 6. f3 {[%emt 0:00:17]} e5 {[%emt 0:00:00]} 7. Nb3 {[%emt 0:00:07]} Be6 {[%emt 0:00:01]} 8. Be3 {[%emt 0:00:07]} h5 {[%emt 0:00:04]} 9. Qd2 {[%emt 0:00:15]} Nbd7 {[%emt 0:00:02]} 10. Nd5 {[%emt 0:00:50]} Bxd5 {[%emt 0:00:05]} 11. exd5 {[%emt 0:00:09]} g6 {[%emt 0:00:11]} 12. Be2 {[%emt 0:01:40]} Bg7 {[%emt 0:00:08]} 13. O-O {[%emt 0:02:10]} e4 {[%emt 0:00:49]} 14. h3 {[%emt 0:02:09]} exf3 {[%emt 0:00:04]} 15. Bxf3 {[%emt 0:03:04]} O-O {[%emt 0:04:19]} 16. Bd4 {[%emt 0:03:31]} Re8 {[%emt 0:02:42]} 17. Rae1 {[%emt 0:01:52]} Qc7 {[%emt 0:14:37]} 18. c3 {[%emt 0:02:40]} a5 {[%emt 0:02:50]} 19. Rxe8+ {[%emt 0:03:09]} Rxe8 {[%emt 0:00:30]} 20. Re1 {[%emt 0:00:32]} Ne5 {[%emt 0:01:49]} 21. Bxe5 {[%emt 0:01:58]} dxe5 {[%emt 0:00:04]} 22. d6 {[%emt 0:03:19]} Qb6+ {[%emt 0:00:12]} 23. Kh2 {[%emt 0:00:42]} a4 {[%emt 0:02:50]} 24. Nc1 {[%emt 0:03:18]} Bf8 {[%emt 0:03:33]} 25. d7 {[%emt 0:03:51]} Rd8 {[%emt 0:01:04]} 26. Kh1 {[%emt 0:03:33]} Rxd7 {[%emt 0:02:09]} 27. Qc2 {[%emt 0:00:33]} Bd6 {[%emt 0:32:10]} 28. Nd3 {[%emt 0:08:39]} Qa5 {[%emt 0:00:32]} 29. Nf2 {[%emt 0:01:44]} Bb8 {[%emt 0:11:22]} 30. Ne4 {[%emt 0:01:22]} Nxe4 {[%emt 0:03:35]} 31. Rxe4 {[%emt 0:00:53]} b5 {[%emt 0:01:13]} 32. Rb4 {[%emt 0:00:59]} e4 {[%emt 0:08:36]} 33. Rxe4 {[%emt 0:03:52]} Qc7 {[%emt 0:00:24]} 34. g4 {[%emt 0:07:22]} hxg4 {[%emt 0:00:40]} 35. hxg4 {[%emt 0:01:16]} Qg3 {[%emt 0:01:09]} 36. Qg2 {[%emt 0:02:19]} Qh4+ {[%emt 0:00:30]} 37. Kg1 {[%emt 0:00:08]} Ba7+ {[%emt 0:00:52]} 38. Kf1 {[%emt 0:00:33]} Qd8 {[%emt 0:01:58]} 39. Qe2 {[%emt 0:00:39]} Qf6 {[%emt 0:07:50]} 40. Re8+ {[%emt 0:00:00]} Kg7 {[%emt 0:00:00]} 41. Qe5 {[%emt 0:08:27]} Qxe5 {[%emt 0:04:25]} 42. Rxe5 {[%emt 0:00:08]} Rd2 {[%emt 0:00:02]} 43. Re2 {[%emt 0:02:05]} Rd1+ {[%emt 0:00:37]} 44. Kg2 {[%emt 0:00:08]} Rg1+ {[%emt 0:03:21]} 45. Kh2 {[%emt 0:00:21]} Rf1 {[%emt 0:01:27]} 46. Kg3 {[%emt 0:02:43]} a3 {[%emt 0:08:09]} 47. bxa3 {[%emt 0:01:23]} Rc1 {[%emt 0:00:41]} 48. Rb2 {[%emt 0:01:04]} Rxc3 {[%emt 0:00:44]} 49. Rxb5 {[%emt 0:00:37]} Rxa3 {[%emt 0:01:35]} 50. Rb2 {[%emt 0:00:14]} Bd4 {[%emt 0:00:57]} 51. Rd2 {[%emt 0:00:41]} Be3 {[%emt 0:01:18]} 52. Rc2 {[%emt 0:00:23]} f5 {[%emt 0:00:24]} 53. gxf5 {[%emt 0:00:34]} gxf5 {[%emt 0:00:09]} 54. Kg2 {[%emt 0:00:46]} Kf6 {[%emt 0:00:12]} 55. Bd5 {[%emt 0:01:07]} Kg5 {[%emt 0:02:23]} 56. Bb3 {[%emt 0:00:24]} Ra7 {[%emt 0:00:27]} 57. Kf3 {[%emt 0:00:40]} f4 {[%emt 0:00:02]} 58. Rg2+ {[%emt 0:00:22]} Kf6 {[%emt 0:00:06]} 59. Rg4 {[%emt 0:02:31]} Kf5 {[%emt 0:00:07]} 60. Rg8 {[%emt 0:00:37]} Rd7 {[%emt 0:03:38]} 61. Rf8+ {[%emt 0:01:27]} Kg5 {[%emt 0:00:38]} 62. Rg8+ {[%emt 0:00:12]} Kh6 {[%emt 0:00:06]} 63. Rg2 {[%emt 0:00:22]} Rg7 {[%emt 0:00:46]} 1/2-1/2

[Event "EYCC Open-U12 2019"]
[Site "Bratislava"]
[Date "2019.08.09"]
[Round "8.19"]
[White "Kluehs, Gustaf"]
[Black "Palczert, Matyas"]
[Result "1-0"]
[ECO "A05"]
[WhiteElo "1811"]
[BlackElo "2065"]
[Annotator "NA"]
[PlyCount "57"]
[EventDate "2019.08.02"]
[EventType "swiss"]
[EventCountry "SVK"]
[SourceTitle "playchess.com"]
[Source "ChessBase"]
[SourceQuality "1"]
[TimeControl "40/5400+30:1800+30"]

1. Nf3 {[%emt 0:00:00]} Nf6 {[%emt 0:00:00]} 2. g3 {[%emt 0:00:00]} e6 {[%emt 0:00:00]} 3. Bg2 {[%emt 0:00:00]} Be7 {[%emt 0:00:00]} 4. O-O {[%emt 0:00:00]} d5 {[%emt 0:00:00]} 5. c4 {[%emt 0:00:17]} O-O {[%emt 0:00:12]} 6. b3 {[%emt 0:02:25]} b6 {[%emt 0:02:45]} 7. Bb2 {[%emt 0:00:18]} c5 {[%emt 0:01:19]} 8. Na3 {[%emt 0:01:57]} Bb7 {[%emt 0:01:52]} 9. d4 {[%emt 0:03:41]} Nc6 {[%emt 0:05:57]} 10. cxd5 {[%emt 0:02:19]} Nxd5 {[%emt 0:00:49]} 11. Nc4 {[%emt 0:01:07]} Rc8 {[%emt 0:09:01]} 12. Rc1 {[%emt 0:09:28]} cxd4 {[%emt 0:05:59]} 13. Nxd4 {[%emt 0:00:47]} Nxd4 {[%emt 0:00:56]} 14. Bxd4 {[%emt 0:00:22]} Bf6 {[%emt 0:02:36]} 15. Bxf6 {[%emt 0:14:36]} Qxf6 {[%emt 0:00:40]} 16. e4 {[%emt 0:03:39]} Nb4 {[%emt 0:07:15]} 17. Qd6 {[%emt 0:06:23]} Nc6 {[%emt 0:04:19]} 18. e5 {[%emt 0:00:54]} Qg6 {[%emt 0:00:31]} 19. Qa3 {[%emt 0:03:09]} Nd4 {[%emt 0:06:43]} 20. Bxb7 {[%emt 0:00:55]} Ne2+ {[%emt 0:01:23]} 21. Kh1 {[%emt 0:00:55]} Nxc1 {[%emt 0:01:03]} 22. Bxc8 {[%emt 0:05:02]} Qe4+ {[%emt 0:00:34]} 23. f3 {[%emt 0:00:20]} Qe2 {[%emt 0:00:08]} 24. Qxc1 {[%emt 0:00:16]} Rxc8 {[%emt 0:00:12]} 25. Qd1 {[%emt 0:00:57]} Qxa2 {[%emt 0:00:22]} 26. Qd7 {[%emt 0:00:39]} Rf8 {[%emt 0:00:15]} 27. Qd3 {[%emt 0:00:23]} b5 {[%emt 0:00:22]} 28. Nd6 {[%emt 0:00:10]} b4 {[%emt 0:00:21]} 29. Rd1 {[%emt 0:02:03]} 1-0

[Event "EYCC Open-U12 2019"]
[Site "Bratislava"]
[Date "2019.08.09"]
[Round "8.20"]
[White "Nemsadze, Daviti"]
[Black "Saveljev, Ivan"]
[Result "1/2-1/2"]
[ECO "D76"]
[WhiteElo "1794"]
[BlackElo "2040"]
[Annotator "NA"]
[PlyCount "89"]
[EventDate "2019.08.02"]
[EventType "swiss"]
[EventCountry "SVK"]
[SourceTitle "playchess.com"]
[Source "ChessBase"]
[SourceQuality "1"]
[TimeControl "40/5400+30:1800+30"]

1. d4 {[%emt 0:00:00]} Nf6 {[%emt 0:00:00]} 2. c4 {[%emt 0:00:00]} g6 {[%emt 0:00:00]} 3. g3 {[%emt 0:00:00]} Bg7 {[%emt 0:00:20]} 4. Bg2 {[%emt 0:00:00]} d5 {[%emt 0:00:27]} 5. cxd5 {[%emt 0:00:00]} Nxd5 {[%emt 0:00:10]} 6. Nf3 {[%emt 0:00:03]} O-O {[%emt 0:00:29]} 7. O-O {[%emt 0:00:05]} Nb6 {[%emt 0:00:34]} 8. Nc3 {[%emt 0:00:07]} Nc6 {[%emt 0:00:15]} 9. e3 {[%emt 0:08:04]} Re8 {[%emt 0:01:53]} 10. d5 {[%emt 0:06:37]} Na5 {[%emt 0:01:46]} 11. Qc2 {[%emt 0:10:29]} Nac4 {[%emt 0:08:49]} 12. Rd1 {[%emt 0:04:29]} Bd7 {[%emt 0:08:25]} 13. b3 {[%emt 0:00:27]} Nd6 {[%emt 0:00:41]} 14. Nd4 {[%emt 0:02:06]} Nf5 {[%emt 0:05:04]} 15. Nxf5 {[%emt 0:00:36]} Bxf5 {[%emt 0:00:12]} 16. e4 {[%emt 0:00:05]} Bg4 {[%emt 0:02:24]} 17. f3 {[%emt 0:00:04]} Bd7 {[%emt 0:00:05]} 18. Bb2 {[%emt 0:00:14]} Rc8 {[%emt 0:16:02]} 19. Ne2 {[%emt 0:00:27]} Bxb2 {[%emt 0:08:38]} 20. Qxb2 {[%emt 0:00:04]} c6 {[%emt 0:02:55]} 21. dxc6 {[%emt 0:00:49]} Rxc6 {[%emt 0:00:24]} 22. Nd4 {[%emt 0:00:03]} Rc8 {[%emt 0:02:35]} 23. f4 {[%emt 0:21:36]} Qc7 {[%emt 0:11:27]} 24. Rac1 {[%emt 0:00:34]} Qb8 {[%emt 0:00:25]} 25. e5 {[%emt 0:03:26]} e6 {[%emt 0:01:20]} 26. Rd2 {[%emt 0:13:06]} Nd5 {[%emt 0:06:40]} 27. Bxd5 {[%emt 0:01:43]} exd5 {[%emt 0:00:09]} 28. Nc2 {[%emt 0:00:04]} Qc7 {[%emt 0:02:49]} 29. Rcd1 {[%emt 0:00:52]} Bg4 {[%emt 0:00:55]} 30. Re1 {[%emt 0:00:27]} Red8 {[%emt 0:01:29]} 31. Ne3 {[%emt 0:00:23]} Be6 {[%emt 0:00:55]} 32. Red1 {[%emt 0:00:12]} Qa5 {[%emt 0:01:41]} 33. Qd4 {[%emt 0:00:49]} h5 {[%emt 0:01:00]} 34. Kf2 {[%emt 0:00:54]} Kf8 {[%emt 0:00:53]} 35. Kg2 {[%emt 0:04:34]} Qc3 {[%emt 0:04:04]} 36. Qxc3 {[%emt 0:01:48]} Rxc3 {[%emt 0:00:05]} 37. Kf2 {[%emt 0:00:01]} Rc5 {[%emt 0:00:45]} 38. Rd4 {[%emt 0:00:16]} Ke7 {[%emt 0:01:06]} 39. b4 {[%emt 0:03:41]} Rc3 {[%emt 0:00:50]} 40. R1d2 {[%emt 0:00:00]} Rc6 {[%emt 0:00:00]} 41. Ke2 {[%emt 0:01:03]} Rb6 {[%emt 0:04:39]} 42. a4 {[%emt 0:05:13]} a6 {[%emt 0:03:56]} 43. h3 {[%emt 0:02:34]} f6 {[%emt 0:01:26]} 44. exf6+ {[%emt 0:00:46]} Kxf6 {[%emt 0:00:05]} 45. g4 {[%emt 0:01:14] Ke5} 1/2-1/2

[Event "EYCC Open-U12 2019"]
[Site "Bratislava"]
[Date "2019.08.09"]
[Round "8.21"]
[White "Tran, David"]
[Black "Guia, Artur Solovyov Eloy"]
[Result "1/2-1/2"]
[ECO "B30"]
[WhiteElo "2112"]
[BlackElo "1790"]
[Annotator "NA"]
[PlyCount "84"]
[EventDate "2019.08.02"]
[EventType "swiss"]
[EventCountry "SVK"]
[SourceTitle "playchess.com"]
[Source "ChessBase"]
[SourceQuality "1"]
[TimeControl "40/5400+30:1800+30"]

1. e4 c5 2. Nf3 Nc6 3. g3 g6 4. Bg2 Bg7 5. O-O d6 6. d3 Rb8 7. a4 a6 8. Nc3 e6 9. Be3 Nge7 10. d4 cxd4 11. Nxd4 O-O 12. f4 Qb6 13. Nce2 Qxb2 14. Nb3 Qf6 15. Qxd6 e5 16. Qxf6 Bxf6 17. Rad1 Bg4 18. Rfe1 exf4 19. gxf4 Bh4 20. Bf2 Bxf2+ 21. Kxf2 b6 22. h3 Be6 23. Ned4 Nxd4 24. Nxd4 Bc4 25. Rd2 Rfd8 26. Red1 Rd7 27. c3 Rbd8 28. Ke3 Kf8 29. Bf3 Ke8 30. Bg4 Rb7 31. f5 gxf5 32. Bxf5 Nxf5+ 33. Nxf5 Rxd2 34. Rxd2 Rc7 35. Rd6 Be6 36. Rxb6 Rxc3+ 37. Kf4 Rxh3 38. Ng7+ Ke7 39. Nxe6 fxe6 40. Rxa6 Kf6 41. e5+ Kf7 42. a5 Ra3 1/2-1/2

[Event "EYCC Open-U12 2019"]
[Site "Bratislava"]
[Date "2019.08.09"]
[Round "8.22"]
[White "Valiyev, Shahin"]
[Black "Bakiev, Diyor"]
[Result "0-1"]
[ECO "C78"]
[WhiteElo "1830"]
[BlackElo "2121"]
[Annotator "NA"]
[PlyCount "142"]
[EventDate "2019.08.02"]
[EventType "swiss"]
[EventCountry "SVK"]
[SourceTitle "playchess.com"]
[Source "ChessBase"]
[SourceQuality "1"]
[TimeControl "40/5400+30:1800+30"]

1. e4 {[%emt 0:00:00]} e5 {[%emt 0:00:00]} 2. Nf3 {[%emt 0:00:00]} Nc6 {[%emt 0:00:24]} 3. Bb5 {[%emt 0:00:00]} a6 {[%emt 0:00:14]} 4. Ba4 {[%emt 0:00:00]} Nf6 {[%emt 0:00:14]} 5. O-O {[%emt 0:01:11]} b5 {[%emt 0:02:04]} 6. Bb3 {[%emt 0:00:05]} Bc5 {[%emt 0:01:27]} 7. d3 {[%emt 0:01:48]} d6 {[%emt 0:00:46]} 8. a3 {[%emt 0:00:14]} Bb6 {[%emt 0:00:46]} 9. Nc3 {[%emt 0:00:33]} h6 {[%emt 0:01:21]} 10. Nd5 {[%emt 0:01:19]} Nxd5 {[%emt 0:07:20]} 11. Bxd5 {[%emt 0:01:07]} Bd7 {[%emt 0:04:49]} 12. c3 {[%emt 0:01:23]} O-O {[%emt 0:01:28]} 13. h3 {[%emt 0:10:47]} Qf6 {[%emt 0:07:43]} 14. Be3 {[%emt 0:09:59]} Rab8 {[%emt 0:08:52]} 15. Bxb6 {[%emt 0:01:25]} Rxb6 {[%emt 0:00:18]} 16. Re1 {[%emt 0:02:11]} Ne7 {[%emt 0:01:53]} 17. Bb3 {[%emt 0:01:28]} Ng6 {[%emt 0:01:16]} 18. d4 {[%emt 0:01:52]} Bc8 {[%emt 0:03:52]} 19. Kh2 {[%emt 0:24:40]} Nf4 {[%emt 0:06:07]} 20. Ng1 {[%emt 0:03:41]} c5 {[%emt 0:04:02]} 21. d5 {[%emt 0:01:08]} Qg5 {[%emt 0:04:47]} 22. g3 {[%emt 0:04:17]} Ng6 {[%emt 0:01:23]} 23. Rf1 {[%emt 0:02:39]} f5 {[%emt 0:12:09]} 24. f3 {[%emt 0:01:02]} h5 25. h4 {[%emt 0:06:36]} Qf6 {[%emt 0:07:49]} 26. exf5 {[%emt 0:00:26]} Bxf5 {[%emt 0:00:26]} 27. Bc2 {[%emt 0:00:18]} Ne7 {[%emt 0:05:24]} 28. Bxf5 {[%emt 0:00:30]} Nxf5 29. Qd2 {[%emt 0:00:49]} b4 {[%emt 0:02:31]} 30. axb4 {[%emt 0:01:59]} cxb4 {[%emt 0:00:07]} 31. cxb4 {[%emt 0:01:27]} Nd4 {[%emt 0:00:47]} 32. Qc3 {[%emt 0:01:17]} Rfb8 {[%emt 0:00:59]} 33. Ra4 {[%emt 0:00:36]} Qf7 {[%emt 0:01:31]} 34. Nh3 {[%emt 0:04:22]} Qxd5 {[%emt 0:01:50]} 35. Ng5 {[%emt 0:00:38]} Qb5 {[%emt 0:02:19]} 36. Rfa1 {[%emt 0:01:33]} Qe2+ {[%emt 0:00:20]} 37. Kh3 {[%emt 0:00:15]} Rc6 {[%emt 0:00:51]} 38. Qe1 {[%emt 0:01:19]} Qxe1 {[%emt 0:01:31]} 39. Rxe1 {[%emt 0:00:09]} Nc2 {[%emt 0:03:46]} 40. Rc1 {[%emt 0:00:00]} d5 {[%emt 0:00:00]} 41. Ra5 {[%emt 0:00:59]} Rb5 {[%emt 0:01:14]} 42. Rxb5 {[%emt 0:00:47]} axb5 {[%emt 0:00:02]} 43. Rd1 {[%emt 0:04:15]} d4 {[%emt 0:01:07]} 44. f4 {[%emt 0:01:20]} exf4 {[%emt 0:02:59]} 45. gxf4 {[%emt 0:00:40]} Rc4 {[%emt 0:07:54]} 46. Nf3 {[%emt 0:01:26]} Rxb4 47. Rd2 {[%emt 0:00:18]} Rb3 {[%emt 0:02:50]} 48. Rxc2 {[%emt 0:00:04]} Rxf3+ {[%emt 0:00:06]} 49. Kg2 {[%emt 0:00:07]} Rxf4 {[%emt 0:00:35]} 50. Rc5 {[%emt 0:00:18]} d3 {[%emt 0:01:15]} 51. Rd5 {[%emt 0:00:24]} Rxh4 {[%emt 0:00:30]} 52. Rxd3 {[%emt 0:00:04]} Rb4 {[%emt 0:01:23]} 53. b3 {[%emt 0:00:04]} Kh7 {[%emt 0:00:29]} 54. Kh3 {[%emt 0:00:11]} Kh6 {[%emt 0:00:21]} 55. Rc3 {[%emt 0:00:12]} Rd4 {[%emt 0:00:41]} 56. Re3 {[%emt 0:01:35]} b4 {[%emt 0:00:28]} 57. Kg2 {[%emt 0:00:10]} h4 {[%emt 0:00:50]} 58. Re6+ {[%emt 0:00:15]} Kh5 {[%emt 0:00:17]} 59. Rb6 {[%emt 0:00:06]} g5 {[%emt 0:00:16]} 60. Rb8 {[%emt 0:00:10]} Kg4 {[%emt 0:00:23]} 61. Rb5 {[%emt 0:01:19]} h3+ {[%emt 0:00:37]} 62. Kh2 {[%emt 0:00:28]} Rd2+ {[%emt 0:00:31]} 63. Kh1 {[%emt 0:00:05]} Rb2 {[%emt 0:00:33]} 64. Rd5 {[%emt 0:00:45]} Rxb3 {[%emt 0:00:10]} 65. Kh2 {[%emt 0:00:06]} Rb2+ {[%emt 0:00:09]} 66. Kh1 {[%emt 0:00:16]} Kh4 {[%emt 0:00:24]} 67. Kg1 {[%emt 0:00:41]} g4 {[%emt 0:00:11]} 68. Rd8 {[%emt 0:00:11]} b3 {[%emt 0:00:18]} 69. Rd1 {[%emt 0:00:29]} Rc2 {[%emt 0:00:06]} 70. Kh1 {[%emt 0:00:16]} b2 {[%emt 0:00:04]} 71. Rg1 {[%emt 0:00:15]} Rc1 {[%emt 0:00:13]} 0-1

[Event "EYCC Open-U12 2019"]
[Site "Bratislava"]
[Date "2019.08.09"]
[Round "8.23"]
[White "Ciric, Pavle"]
[Black "Bialiauski, Artsiom"]
[Result "1-0"]
[ECO "C68"]
[WhiteElo "1987"]
[BlackElo "1784"]
[Annotator "NA"]
[PlyCount "53"]
[EventDate "2019.08.02"]
[EventType "swiss"]
[EventCountry "SVK"]
[SourceTitle "playchess.com"]
[Source "ChessBase"]
[SourceQuality "1"]
[TimeControl "40/5400+30:1800+30"]

1. e4 {[%emt 0:00:00]} e5 {[%emt 0:00:00]} 2. Nf3 {[%emt 0:00:00]} Nc6 {[%emt 0:00:19]} 3. Bb5 {[%emt 0:00:00]} a6 {[%emt 0:00:38]} 4. Bxc6 {[%emt 0:00:00]} dxc6 {[%emt 0:00:14]} 5. O-O {[%emt 0:00:01]} Qf6 {[%emt 0:07:20]} 6. d4 {[%emt 0:10:22]} Bd6 {[%emt 0:04:20]} 7. dxe5 {[%emt 0:02:09]} Bxe5 {[%emt 0:00:14]} 8. Bg5 {[%emt 0:00:15]} Qd6 {[%emt 0:06:39]} 9. Nxe5 {[%emt 0:01:03]} Qxd1 {[%emt 0:00:14]} 10. Rxd1 {[%emt 0:00:02]} f6 {[%emt 0:00:06]} 11. Bf4 {[%emt 0:01:35]} fxe5 {[%emt 0:00:35]} 12. Bxe5 {[%emt 0:00:02]} Nf6 {[%emt 0:01:14]} 13. Nc3 {[%emt 0:01:01]} Be6 {[%emt 0:03:47]} 14. Bxc7 {[%emt 0:00:13]} Kf7 {[%emt 0:02:15]} 15. f3 {[%emt 0:07:05]} Rac8 {[%emt 0:02:47]} 16. Bf4 {[%emt 0:00:29]} h6 {[%emt 0:04:38]} 17. Rd2 {[%emt 0:01:08]} Ne8 {[%emt 0:03:07]} 18. Rad1 {[%emt 0:00:27]} Ke7 {[%emt 0:01:06]} 19. Na4 {[%emt 0:04:24]} Rf8 {[%emt 0:03:20]} 20. Be3 {[%emt 0:01:26]} Rg8 {[%emt 0:12:10]} 21. Nb6 {[%emt 0:04:24]} Nf6 {[%emt 0:06:21]} 22. Nxc8+ {[%emt 0:00:06]} Rxc8 {[%emt 0:00:07]} 23. Bc5+ {[%emt 0:00:22]} Ke8 {[%emt 0:00:07]} 24. Bd4 {[%emt 0:00:18]} a5 {[%emt 0:00:23]} 25. Bxf6 {[%emt 0:00:08]} gxf6 {[%emt 0:00:03]} 26. a3 {[%emt 0:00:22]} Ke7 {[%emt 0:01:50]} 27. Kf2 {[%emt 0:00:06]} 1-0

[Event "EYCC Open-U12 2019"]
[Site "Bratislava"]
[Date "2019.08.09"]
[Round "8.24"]
[White "Zlatkov, Anton"]
[Black "Kvaloy, Aksel Bu"]
[Result "0-1"]
[ECO "B22"]
[WhiteElo "1782"]
[BlackElo "2205"]
[Annotator "NA"]
[PlyCount "74"]
[EventDate "2019.08.02"]
[EventType "swiss"]
[EventCountry "SVK"]
[SourceTitle "playchess.com"]
[Source "ChessBase"]
[SourceQuality "1"]
[TimeControl "40/5400+30:1800+30"]

1. e4 {[%emt 0:00:00]} c5 {[%emt 0:00:00]} 2. c3 {[%emt 0:00:00]} Nf6 {[%emt 0:00:00]} 3. e5 {[%emt 0:00:00]} Nd5 {[%emt 0:00:00]} 4. d4 {[%emt 0:00:00]} cxd4 {[%emt 0:00:03]} 5. Nf3 {[%emt 0:00:15]} Nc6 {[%emt 0:00:13]} 6. cxd4 {[%emt 0:00:21]} d6 {[%emt 0:00:09]} 7. Bc4 {[%emt 0:00:25]} Nb6 {[%emt 0:00:09]} 8. Bb3 {[%emt 0:00:26]} dxe5 {[%emt 0:00:19]} 9. d5 {[%emt 0:00:34]} Na5 {[%emt 0:00:10]} 10. Nc3 {[%emt 0:01:07]} Bg4 {[%emt 0:00:32]} 11. Ba4+ {[%emt 0:14:27]} Nxa4 {[%emt 0:00:23]} 12. Qxa4+ {[%emt 0:01:38]} Bd7 {[%emt 0:00:04]} 13. Qe4 {[%emt 0:00:47]} f6 {[%emt 0:00:33]} 14. Be3 {[%emt 0:07:48]} Rc8 {[%emt 0:08:03]} 15. Nd2 {[%emt 0:13:17]} b6 {[%emt 0:10:10]} 16. O-O {[%emt 0:01:26]} g6 {[%emt 0:27:33]} 17. f4 {[%emt 0:05:20]} exf4 {[%emt 0:00:46]} 18. Bxf4 {[%emt 0:00:49]} Bf5 {[%emt 0:01:08]} 19. Qe2 {[%emt 0:16:07]} e5 {[%emt 0:10:53]} 20. g4 {[%emt 0:06:45]} Bc5+ {[%emt 0:03:34]} 21. Kh1 {[%emt 0:01:09]} Bxg4 {[%emt 0:07:08]} 22. Qxg4 {[%emt 0:00:25]} exf4 {[%emt 0:00:06]} 23. Rae1+ {[%emt 0:01:27]} Kf7 {[%emt 0:00:20]} 24. Rxf4 {[%emt 0:04:40]} Bd6 {[%emt 0:04:49]} 25. Rf3 {[%emt 0:02:19]} Kg7 {[%emt 0:01:24]} 26. Ref1 {[%emt 0:04:31]} Be5 {[%emt 0:00:43]} 27. Nde4 {[%emt 0:02:01]} Rf8 {[%emt 0:03:47]} 28. Ng5 {[%emt 0:03:15]} Qe7 {[%emt 0:05:35]} 29. Ne6+ {[%emt 0:00:23]} Kh8 {[%emt 0:00:01]} 30. Nxf8 {[%emt 0:00:16]} Rxf8 {[%emt 0:00:05]} 31. Qe6 {[%emt 0:01:14]} Qb4 {[%emt 0:00:07]} 32. Ne4 {[%emt 0:01:51]} Qxe4 {[%emt 0:00:20]} 33. d6 {[%emt 0:00:41]} Qc2 {[%emt 0:00:28]} 34. R1f2 {[%emt 0:02:59]} Qc6 {[%emt 0:02:38]} 35. Kg2 {[%emt 0:01:27]} Nb7 {[%emt 0:01:22]} 36. Re2 {[%emt 0:00:54]} Nxd6 {[%emt 0:02:57]} 37. Rxe5 {[%emt 0:00:41]} fxe5 {[%emt 0:00:13]} 0-1